[Event "Romanian Championship 2024"]
[Site "Eforie Nord"]
[Date "2024.02.25"]
[Round "2.20"]
[White "Nastase, Stefan"]
[Black "Antonica, Dragos-Andrei"]
[Result "0-1"]
[ECO "A06"]
[WhiteElo "1815"]
[BlackElo "2366"]
[Annotator "TA"]
[PlyCount "110"]
[EventDate "2024.02.24"]
[EventType "swiss"]
[EventCountry "ROU"]
[SourceTitle "playchess.com"]
[Source "ChessBase"]
[SourceQuality "1"]
[TimeControl "40/5400+30:900+30"]

{[%evp 13,110,-26,-28,-26,-30,-38,-32,-16,-12,-42,-36,-43,-53,-59,-63,-61,-68,-78,-33,-43,-40,-40,-10,-16,-30,-65,-52,-196,-193,-200,-197,-209,-212,-219,-209,-149,-118,-112,-127,-110,-80,-187,-60,-55,-63,-81,-76,-82,-79,-107,-113,-109,-109,-110,-109,-120,-120,-120,-86,-83,-65,-310,-310,-302,-295,-285,-284,-291,-270,-312,-286,-420,-446,-337,-339,-454,-443,-510,-437,-454,-500,-482,-433,-518,-484,-1817,-1613,-1507,-1339,-29971,-29974,-29980,-29981,-29981,-29982,-29982,-29969,-29983,-29984]} 1. Nf3 {[%emt 0:00:05]} Nf6 {[%emt 0:00:33]} 2. b3 {[%emt 0:00:22]} d5 {[%emt 0:00:27]} 3. Bb2 {[%emt 0:00:15]} Bg4 {[%emt 0:00:28]} 4. Ne5 {[%emt 0:02:28]} Bh5 {[%emt 0:02:00]} 5. g3 {[%emt 0:00:42]} e6 {[%emt 0:03:32]} 6. Bg2 {[%emt 0:00:18] A06: Réti Opening: 1 Nf3 d5.} Nbd7 {[%emt 0:01:33]} 7. d4 {[%emt 0:02:08]} Nxe5 {[%emt 0:15:14]} 8. dxe5 {[%emt 0:00:17]} Nd7 {[%emt 0:00:04]} 9. O-O {[%emt 0:00:55]} c6 $146 {[%emt 0:02:23]} ({Predecessor:} 9... Be7 10. c4 c6 11. Qc2 Bg6 12. e4 h5 13. Nc3 d4 14. Ne2 c5 15. Nf4 Nxe5 16. Nxg6 Nxg6 {0-1 Kerek,C (2190)-Bigaliev,R (2430) Kobanya op 1996 (1)}) 10. Nd2 {[%emt 0:03:23]} Bc5 {[%emt 0:03:20]} 11. h3 {[%emt 0:15:50]} Qb6 {[%emt 0:08:51]} 12. g4 {[%emt 0:02:52]} Bg6 {[%emt 0:00:13]} 13. c4 {[%emt 0:17:44]} h5 {[%emt 0:17:42]} 14. g5 {[%emt 0:02:30]} O-O {[%emt 0:12:32]} 15. Rc1 {[%emt 0:15:54]} Bd4 {[%emt 0:05:58]} 16. Bxd4 {[%emt 0:13:06]} Qxd4 {[%emt 0:00:05]} 17. cxd5 {[%emt 0:02:51]} exd5 {[%emt 0:00:36]} 18. Nc4 $1 {[%emt 0:01:37]} Qf4 {[%emt 0:08:15]} 19. e3 {[%emt 0:02:25]} Qf5 {[%emt 0:04:38]} 20. f4 {[%emt 0:05:41]} ({Better is} 20. Nd6 $15 Qxe5 (20... Qxg5 21. f4 $11) 21. Nxb7) 20... dxc4 $19 {[%emt 0:00:59]} 21. e4 {[%emt 0:00:27]} Qe6 {[%emt 0:00:09]} 22. f5 {[%emt 0:00:24]} Qe7 {[%emt 0:02:42]} (22... Qxe5 23. Qxd7 Rad8 24. Qxb7 $11) 23. fxg6 {[%emt 0:01:35]} fxg6 {[%emt 0:01:55]} 24. Qd6 {[%emt 0:00:19]} Qxd6 {[%emt 0:01:11]} (24... Qxg5 25. Qxd7 Kh7 26. h4 (26. bxc4 $2 Rad8 $19) 26... Qxh4 27. Qxb7 $16 (27. bxc4 Qg5 $11)) 25. exd6 {[%emt 0:00:11]} cxb3 {[%emt 0:00:13]} 26. axb3 {[%emt 0:00:33]} Ne5 {[%emt 0:01:32]} 27. Rcd1 {[%emt 0:06:23]} (27. h4 $17) 27... Rad8 {[%emt 0:01:21]} (27... h4 $19 28. Rxf8+ Kxf8) 28. h4 $1 $15 {[%emt 0:00:32]} Rxf1+ {[%emt 0:02:47]} 29. Bxf1 {[%emt 0:00:20]} Kf7 {[%emt 0:01:22]} 30. Bh3 {[%emt 0:01:34]} Ng4 {[%emt 0:00:58]} 31. Bxg4 {[%emt 0:01:03]} hxg4 {[%emt 0:00:01]} 32. e5 {[%emt 0:01:46]} Ke6 {[%emt 0:02:56]} 33. Re1 {[%emt 0:00:00]} Rh8 {[%emt 0:00:00]} 34. Kg2 {[%emt 0:00:00]} Rxh4 {[%emt 0:00:00]} 35. Kg3 {[%emt 0:00:00]} Rh3+ {[%emt 0:00:47]} 36. Kxg4 {[%emt 0:00:00]} Rd3 {[%emt 0:00:12]} (36... Rxb3 $2 37. Rd1 Rb4+ (37... Kxe5 $2 38. d7 $18) 38. Kg3 Rb3+ (38... Kxe5 $2 39. d7 $18) 39. Kg2 Rb2+ (39... Kxe5 $2 40. d7 $18) 40. Kg1 $18) 37. Kf4 $2 {[%emt 0:00:46]} ({White has to play} 37. b4 $1 $15) 37... c5 $19 {[%emt 0:00:51]} (37... Rxb3 $2 38. Rd1 Rb4+ 39. Kg3 Rb3+ (39... Kxe5 $2 40. d7 $18) 40. Kg2 Rb2+ (40... Kxe5 $2 41. d7 $18) 41. Kg1 $18) 38. Re3 {[%emt 0:00:47]} Rd1 {[%emt 0:00:34]} (38... Rxe3 39. Kxe3 Kd7 (39... Kxe5 $2 40. d7 $18) 40. Kd3 $11) 39. Ke4 {[%emt 0:01:57]} Rd4+ {[%emt 0:00:17]} 40. Kf3 {[%emt 0:00:30]} a5 {[%emt 0:00:00]} 41. Ke2 {[%emt 0:00:00] [#]} Rd5 $1 {[%emt 0:05:00]} 42. Kf3 {[%emt 0:03:17]} (42. Kf2 {was necessary.}) 42... b5 $19 {[%emt 0:01:43]} (42... Rxe5 $2 43. Rxe5+ Kxd6 44. Re8 $18) 43. Re4 {[%emt 0:00:21]} Rd3+ {[%emt 0:01:46]} (43... Rxe5 $2 44. Rxe5+ Kxd6 45. Kf4 $18 (45. Ke4 Kc6 $18)) 44. Re3 {[%emt 0:13:22]} Rd4 {[%emt 0:00:40]} 45. Rc3 {[%emt 0:00:00]} Rd5 {[%emt 0:02:03]} (45... Kxe5 46. Rxc5+ Kxd6 47. Rxb5 $11) 46. Re3 {[%emt 0:01:00]} a4 {[%emt 0:03:38]} (46... Rxe5 $2 47. Rxe5+ Kxd6 48. Ke4 $18) 47. bxa4 {[%emt 0:00:00]} bxa4 {[%emt 0:00:32]} (47... Rxe5 48. Rxe5+ (48. axb5 $2 Kxd6 49. Re4 Kd5 $19) 48... Kxd6 49. a5 $18 (49. Re4 bxa4 50. Rxa4 Ke5 51. Kg4 Ke6 52. Ra7 c4 53. Rxg7 Kd6 54. Rxg6+ Kd7)) 48. Ke2 {[%emt 0:00:00]} c4 {[%emt 0:01:14]} (48... Rxe5 49. Rxe5+ Kxd6 50. Re3 $18) 49. Re4 {[%emt 0:00:00]} (49. Ra3 $142 Rxe5+ 50. Kd2) 49... a3 $19 {[%emt 0:01:12]} (49... Rxe5 50. Rxe5+ Kxd6 51. Ra5 a3 52. Ke3 (52. Rxa3 Ke5 53. Ke3 Kf5 54. Ra5+ Kg4 55. Kd4 Kf4 56. Kxc4 Ke4) 52... Ke7 53. Rxa3 Ke6 54. Ra5) 50. Rxc4 {[%emt 0:02:00]} Rxe5+ {[%emt 0:00:18]} 51. Kf3 {[%emt 0:00:00]} Ra5 {[%emt 0:00:24]} (51... Rxg5 52. Ra4 $15) 52. Re4+ {[%emt 0:00:00]} Kxd6 {[%emt 0:00:23]} 53. Re1 {[%emt 0:00:00]} a2 {[%emt 0:00:06]} 54. Ra1 {[%emt 0:00:00]} Ke5 {[%emt 0:00:11]} ({Weaker is} 54... Rxg5 55. Rxa2 Ke7 56. Ra1 $17) 55. Kg3 {[%emt 0:00:14]} Kd4 {[%emt 0:00:18]} 0-1

[Event "Romanian Championship 2024"]
[Site "Eforie Nord"]
[Date "2024.02.25"]
[Round "2.21"]
[White "Ciocani, Iosif"]
[Black "Ghita, Vlad-Bogdan"]
[Result "1-0"]
[ECO "B49"]
[WhiteElo "2063"]
[BlackElo "1893"]
[Annotator "NA RC"]
[PlyCount "67"]
[EventDate "2024.02.24"]
[EventType "swiss"]
[EventCountry "ROU"]
[SourceTitle "playchess.com"]
[Source "ChessBase"]
[SourceQuality "1"]
[TimeControl "40/5400+30:900+30"]

1. e4 {[%emt 0:02:55]} c5 {[%emt 0:00:06]} 2. Nf3 {[%emt 0:00:08]} e6 {[%emt 0:00:06]} 3. d4 {[%emt 0:00:05]} cxd4 {[%emt 0:00:04]} 4. Nxd4 {[%emt 0:00:05]} Nc6 {[%emt 0:00:06]} 5. Nc3 {[%emt 0:00:04]} Qc7 {[%emt 0:00:04]} 6. Be3 {[%emt 0:00:13]} a6 {[%emt 0:00:07]} 7. a3 {[%emt 0:00:12]} b5 {[%emt 0:00:06]} 8. Nxc6 {[%emt 0:00:12]} Qxc6 {[%emt 0:00:22]} 9. Be2 {[%emt 0:00:14]} Bb7 {[%emt 0:01:39]} 10. O-O {[%emt 0:00:18]} Nf6 {[%emt 0:03:09]} 11. Qd2 {[%emt 0:32:37]} d6 {[%emt 0:02:49]} 12. f3 {[%emt 0:09:45]} Be7 {[%emt 0:01:58]} 13. a4 {[%emt 0:02:42]} b4 {[%emt 0:03:13]} 14. Na2 {[%emt 0:01:35]} d5 {[%emt 0:01:48]} 15. e5 {[%emt 0:01:27]} Nd7 {[%emt 0:00:20]} 16. Nxb4 {[%emt 0:00:42]} Qc7 {[%emt 0:01:30]} 17. f4 {[%emt 0:01:23]} O-O {[%emt 0:00:07]} 18. Nd3 {[%emt 0:09:03]} Rfc8 {[%emt 0:01:30]} 19. c3 {[%emt 0:00:45]} Nb6 {[%emt 0:00:57]} 20. b3 {[%emt 0:00:38]} a5 {[%emt 0:01:44]} 21. Bd4 {[%emt 0:01:02]} Ba6 {[%emt 0:00:31]} 22. f5 {[%emt 0:01:05]} exf5 {[%emt 0:00:20]} 23. Rxf5 {[%emt 0:00:21]} g6 {[%emt 0:02:05]} 24. Rf3 {[%emt 0:01:07]} Bxd3 {[%emt 0:01:30]} 25. Bxd3 {[%emt 0:01:32]} Bc5 {[%emt 0:00:06]} 26. Qf4 {[%emt 0:02:11]} Rf8 {[%emt 0:00:29]} 27. Rh3 {[%emt 0:00:52]} f6 {[%emt 0:00:18]} 28. Qh4 {[%emt 0:13:36]} fxe5 {[%emt 0:01:24]} 29. Bxg6 {[%emt 0:02:26]} exd4 {[%emt 0:02:07]} 30. Bxh7+ {[%emt 0:00:26]} Kf7 {[%emt 0:00:25]} 31. Re1 {[%emt 0:03:39]} dxc3+ {[%emt 0:00:19]} 32. Kh1 {[%emt 0:00:06]} Qd6 {[%emt 0:07:16]} 33. Qh5+ {[%emt 0:00:10]} Kg7 {[%emt 0:00:13]} 34. Qg5+ {[%emt 0:00:06]} 1-0

[Event "Romanian Championship 2024"]
[Site "Eforie Nord"]
[Date "2024.02.25"]
[Round "2.22"]
[White "Burtea, Marius-Valentin"]
[Black "Gales, Randi-Ioan"]
[Result "0-1"]
[ECO "E06"]
[WhiteElo "1770"]
[BlackElo "2062"]
[Annotator "RC"]
[PlyCount "74"]
[EventDate "2024.02.24"]
[EventType "swiss"]
[EventCountry "ROU"]
[SourceTitle "playchess.com"]
[Source "ChessBase"]
[SourceQuality "1"]
[TimeControl "40/5400+30:900+30"]

1. Nf3 {[%emt 0:00:05]} Nf6 {[%emt 0:00:09]} 2. g3 {[%emt 0:00:07]} d5 {[%emt 0:00:05]} 3. Bg2 {[%emt 0:00:11]} e6 {[%emt 0:00:08]} 4. O-O {[%emt 0:00:09]} Be7 {[%emt 0:00:06]} 5. d4 {[%emt 0:00:09]} O-O {[%emt 0:00:07]} 6. c4 {[%emt 0:00:12]} c6 {[%emt 0:00:03]} 7. Qc2 {[%emt 0:01:02]} b6 {[%emt 0:00:12]} 8. Ne5 {[%emt 0:00:34]} Nfd7 {[%emt 0:06:27]} 9. Nd3 {[%emt 0:05:25]} a5 {[%emt 0:02:46]} 10. b3 {[%emt 0:09:16]} Ba6 {[%emt 0:05:01]} 11. Bb2 {[%emt 0:12:43]} b5 {[%emt 0:04:09]} 12. c5 {[%emt 0:09:14]} b4 {[%emt 0:01:14]} 13. a3 {[%emt 0:07:52]} bxa3 {[%emt 0:03:31]} 14. Rxa3 {[%emt 0:00:54]} Bf6 {[%emt 0:01:52]} 15. f4 {[%emt 0:10:58]} Bxd3 {[%emt 0:01:44]} 16. exd3 {[%emt 0:00:18]} Na6 {[%emt 0:01:40]} 17. Bc3 {[%emt 0:00:33]} Nb4 {[%emt 0:00:27]} 18. Qd2 {[%emt 0:01:06]} Qb8 {[%emt 0:01:05]} 19. Ra4 {[%emt 0:00:35]} Qb5 {[%emt 0:05:19]} 20. Rd1 {[%emt 0:00:31]} Rfb8 {[%emt 0:00:43]} 21. Na3 {[%emt 0:01:50]} Qb7 {[%emt 0:00:06]} 22. Rb1 {[%emt 0:05:02]} g6 {[%emt 0:08:33]} 23. Bf1 {[%emt 0:02:59]} Bg7 {[%emt 0:03:10]} 24. Qb2 {[%emt 0:02:42]} f6 {[%emt 0:06:04]} 25. Nc2 {[%emt 0:07:31]} Nxc2 {[%emt 0:02:44]} 26. Qxc2 {[%emt 0:00:05]} e5 {[%emt 0:00:59]} 27. fxe5 {[%emt 0:10:10]} fxe5 {[%emt 0:00:07]} 28. Bh3 {[%emt 0:00:08]} Re8 {[%emt 0:07:22]} 29. Bxd7 {[%emt 0:03:25]} Qxd7 {[%emt 0:00:45]} 30. dxe5 {[%emt 0:01:38]} Bxe5 {[%emt 0:01:08]} 31. Bxe5 {[%emt 0:05:47]} Rxe5 {[%emt 0:00:02]} 32. Rf1 {[%emt 0:00:36]} Rae8 {[%emt 0:02:05]} 33. Qf2 {[%emt 0:01:52]} Qe7 {[%emt 0:02:25]} 34. Qf6 {[%emt 0:00:49]} Qxf6 {[%emt 0:05:16]} 35. Rxf6 {[%emt 0:00:06]} Re2 {[%emt 0:00:33]} 36. Rxc6 {[%emt 0:00:46]} Rc2 {[%emt 0:00:37]} 37. Rc7 {[%emt 0:01:40]} Re1# {[%emt 0:30:16]} 0-1

[Event "Romanian Championship 2024"]
[Site "Eforie Nord"]
[Date "2024.02.25"]
[Round "2.23"]
[White "Sava, Robert-Gabriel"]
[Black "Constantinoiu, Alexandru Ioan"]
[Result "1-0"]
[ECO "E09"]
[WhiteElo "2053"]
[BlackElo "1754"]
[Annotator "RC"]
[PlyCount "123"]
[EventDate "2024.02.24"]
[EventType "swiss"]
[EventCountry "ROU"]
[SourceTitle "playchess.com"]
[Source "ChessBase"]
[SourceQuality "1"]
[TimeControl "40/5400+30:900+30"]

1. d4 {[%emt 0:00:04]} d5 {[%emt 0:00:12]} 2. c4 {[%emt 0:00:12]} c6 {[%emt 0:00:10]} 3. Nf3 {[%emt 0:00:08]} Nf6 {[%emt 0:00:15]} 4. g3 {[%emt 0:00:13]} e6 {[%emt 0:00:09]} 5. Bg2 {[%emt 0:00:32]} Nbd7 {[%emt 0:00:09]} 6. O-O {[%emt 0:00:11]} Be7 {[%emt 0:00:10]} 7. Qc2 {[%emt 0:00:52]} O-O {[%emt 0:00:12]} 8. Rd1 {[%emt 0:00:15]} b6 {[%emt 0:00:33]} 9. Nbd2 {[%emt 0:00:36]} Bb7 {[%emt 0:00:16]} 10. e4 {[%emt 0:02:51]} Rc8 {[%emt 0:00:27]} 11. e5 {[%emt 0:02:00]} Ne8 {[%emt 0:00:07]} 12. cxd5 {[%emt 0:03:36]} cxd5 {[%emt 0:00:52]} 13. Qd3 {[%emt 0:00:08]} Nb8 {[%emt 0:14:34]} 14. Nf1 {[%emt 0:01:26]} Ba6 {[%emt 0:00:31]} 15. Qe3 {[%emt 0:02:08]} Nc6 {[%emt 0:07:32]} 16. a3 {[%emt 0:03:47]} Na5 {[%emt 0:16:22]} 17. b3 {[%emt 0:00:22]} Nc7 {[%emt 0:05:59]} 18. Bd2 {[%emt 0:00:37]} Nc6 {[%emt 0:00:18]} 19. Rdc1 {[%emt 0:01:51]} Qd7 {[%emt 0:02:07]} 20. g4 {[%emt 0:02:48]} f6 {[%emt 0:09:02]} 21. exf6 {[%emt 0:01:34]} Rxf6 {[%emt 0:02:24]} 22. g5 {[%emt 0:00:37]} Rff8 {[%emt 0:01:19]} 23. Ng3 {[%emt 0:14:07]} Bd6 {[%emt 0:03:29]} 24. Qe1 {[%emt 0:12:56]} Nb5 {[%emt 0:08:58]} 25. Rxc6 {[%emt 0:18:55]} Rxc6 {[%emt 0:01:58]} 26. a4 {[%emt 0:00:30]} Nc7 {[%emt 0:04:11]} 27. Ne5 {[%emt 0:04:13]} Bxe5 {[%emt 0:00:11]} 28. Qxe5 {[%emt 0:00:08]} Rc2 {[%emt 0:01:12]} 29. Be3 {[%emt 0:01:13]} Bd3 {[%emt 0:03:09]} 30. h4 {[%emt 0:02:01]} g6 {[%emt 0:02:34]} 31. h5 {[%emt 0:01:44]} Qg7 {[%emt 0:01:17]} 32. Qd6 {[%emt 0:01:06]} Qf7 {[%emt 0:00:33]} 33. h6 {[%emt 0:02:16]} Ne8 {[%emt 0:04:10]} 34. Qe5 {[%emt 0:00:26]} Rc6 {[%emt 0:00:33]} 35. Bh3 {[%emt 0:01:27]} Bf5 {[%emt 0:00:20]} 36. Nxf5 {[%emt 0:00:51]} gxf5 {[%emt 0:00:57]} 37. Bf4 {[%emt 0:02:25]} Nd6 {[%emt 0:04:55]} 38. Re1 {[%emt 0:01:03]} Re8 {[%emt 0:00:22]} 39. Bf1 {[%emt 0:00:28]} Qg6 {[%emt 0:02:40]} 40. Be2 {[%emt 0:00:00]} Re7 {[%emt 0:00:00]} 41. Be3 {[%emt 0:20:44]} Ne4 {[%emt 0:06:04]} 42. Qf4 {[%emt 0:02:47]} Rc3 {[%emt 0:11:51]} 43. Rc1 {[%emt 0:04:44]} Rxe3 {[%emt 0:01:53]} 44. fxe3 {[%emt 0:00:39]} Qxg5+ {[%emt 0:00:44]} 45. Qxg5+ {[%emt 0:00:08]} Nxg5 {[%emt 0:00:05]} 46. Bh5 {[%emt 0:00:08]} Rf7 {[%emt 0:02:00]} 47. Bxf7+ {[%emt 0:00:07]} Kxf7 {[%emt 0:00:04]} 48. Rc7+ {[%emt 0:00:04]} Kg6 {[%emt 0:00:06]} 49. Rxa7 {[%emt 0:00:04]} Nf3+ {[%emt 0:01:22]} 50. Kf2 {[%emt 0:00:06]} Nd2 {[%emt 0:00:10]} 51. Rb7 {[%emt 0:00:18]} Kxh6 {[%emt 0:00:27]} 52. Rxb6 {[%emt 0:00:09]} Kg5 {[%emt 0:00:16]} 53. a5 {[%emt 0:00:04]} h5 {[%emt 0:00:04]} 54. a6 {[%emt 0:00:03]} h4 {[%emt 0:00:07]} 55. a7 {[%emt 0:00:04]} h3 {[%emt 0:00:18]} 56. a8=Q {[%emt 0:00:07]} h2 {[%emt 0:00:04]} 57. Qg8+ {[%emt 0:00:06]} Kh4 {[%emt 0:00:09]} 58. Qh7+ {[%emt 0:00:13]} Kg4 {[%emt 0:00:08]} 59. Qxh2 {[%emt 0:00:06]} Ne4+ {[%emt 0:00:05]} 60. Kg2 {[%emt 0:00:02]} e5 {[%emt 0:00:09]} 61. Rg6+ {[%emt 0:00:06]} Ng5 {[%emt 0:00:15]} 62. Qh3# {[%emt 0:00:04]} 1-0

[Event "Romanian Championship 2024"]
[Site "Eforie Nord"]
[Date "2024.02.26"]
[Round "3.1"]
[White "Ilinca, Felix-Antonio"]
[Black "Parligras, Mircea-Emilian"]
[Result "0-1"]
[ECO "B90"]
[WhiteElo "2415"]
[BlackElo "2539"]
[Annotator "TA"]
[PlyCount "98"]
[EventDate "2024.02.24"]
[EventType "swiss"]
[EventCountry "ROU"]
[SourceTitle "playchess.com"]
[Source "ChessBase"]
[SourceQuality "1"]
[TimeControl "40/5400+30:900+30"]

{[%evp 18,98,71,63,73,72,64,67,75,27,50,37,44,33,70,0,30,-2,-7,0,-18,-27,-12,-16,-22,-16,-19,-23,-16,-25,-20,-22,-10,-41,0,-20,-13,-20,-18,-25,0,-37,-30,-32,-33,-22,-35,-39,-50,-106,-92,-126,-128,-132,-129,-128,-129,-166,-159,-168,-135,-140,-136,-175,-152,-156,-148,-150,0,0,0,-159,-140,-148,-156,-127,-14,-1344,-1333,-1293,-1293,-5720,-5364]} 1. e4 {[%emt 0:00:19]} c5 {[%emt 0:00:20]} 2. Nf3 {[%emt 0:00:25]} d6 {[%emt 0:00:06]} 3. d4 {[%emt 0:00:17]} cxd4 {[%emt 0:00:06]} 4. Nxd4 {[%emt 0:00:08]} Nf6 {[%emt 0:00:04]} 5. Nc3 {[%emt 0:00:18]} a6 {[%emt 0:00:05]} 6. Rg1 {[%emt 0:00:48]} e5 {[%emt 0:01:11] 6...h5 is the fancy move.} 7. Nb3 {[%emt 0:00:21] B90: Sicilian Najdorf: Unusual White 6th moves, 6 Be3 Ng4 and 6 Be3 e5.} h5 {[%emt 0:00:11]} 8. Be3 {[%emt 0:01:02]} Ng4 {[%emt 0:10:23]} 9. Bd2 {[%emt 0:01:30]} Be6 $146 {[%emt 0:00:34]} ({Predecessor:} 9... Be7 10. h3 Nf6 11. Qf3 Be6 12. O-O-O Qc8 13. Kb1 Nbd7 14. g4 g6 15. g5 Nh7 {1-0 Fier,A (2606)-Delgado Ramirez,N (2561) Montevideo Duchamp Cup 6th 2023 (7)}) 10. h3 {[%emt 0:02:18]} Nf6 {[%emt 0:00:05]} 11. Qf3 {[%emt 0:03:40]} h4 {[%emt 0:01:47]} 12. O-O-O {[%emt 0:02:18]} Nbd7 {[%emt 0:00:12]} 13. Nd5 {[%emt 0:06:05]} (13. g3 $16) 13... Bxd5 $11 {[%emt 0:05:36]} 14. exd5 {[%emt 0:00:09]} g6 {[%emt 0:01:01]} 15. Kb1 {[%emt 0:05:31]} Qc7 {[%emt 0:11:07]} 16. Bd3 {[%emt 0:08:34]} (16. g4 $14) 16... Bg7 {[%emt 0:01:38]} 17. Bg5 {[%emt 0:14:37]} Rh5 {[%emt 0:13:57]} 18. Bd2 {[%emt 0:04:29]} Kf8 {[%emt 0:00:50]} ({Much worse is} 18... Nb6 $6 19. Ba5 $16) 19. g4 {[%emt 0:05:46]} hxg3 {[%emt 0:00:43]} 20. fxg3 {[%emt 0:00:54]} Rxh3 {[%emt 0:17:34]} 21. Qg2 {[%emt 0:04:23]} Rh7 {[%emt 0:00:07]} 22. g4 {[%emt 0:03:35]} e4 {[%emt 0:01:34]} 23. Bxe4 {[%emt 0:01:39]} Nxe4 {[%emt 0:00:17]} 24. Qxe4 {[%emt 0:00:07]} Re8 {[%emt 0:00:04]} 25. Qf4 {[%emt 0:04:13]} Be5 {[%emt 0:01:27]} 26. Qf2 {[%emt 0:04:55]} Rh2 {[%emt 0:05:10]} 27. Rg2 {[%emt 0:02:39]} (27. Qf3 {is more complex.} Bg7 28. Rde1 Rxe1+ 29. Rxe1 Be5 30. Rf1) 27... Rxg2 {[%emt 0:00:17]} 28. Qxg2 {[%emt 0:00:06]} Qc4 {[%emt 0:03:47]} 29. Bc1 {[%emt 0:06:12]} Bg7 {[%emt 0:07:35]} 30. Qg3 {[%emt 0:02:54]} Re5 {[%emt 0:02:59]} 31. Qf4 {[%emt 0:05:35]} Nb6 {[%emt 0:05:11]} 32. Na5 {[%emt 0:03:58]} Qb5 {[%emt 0:01:36]} 33. Rf1 {[%emt 0:03:56]} (33. Nxb7 $15 Nxd5 (33... Rxd5 $2 {perishes.} 34. Nxd6 Qd7 35. Nxf7 $18) 34. Nxd6 Nxf4 35. Nxb5 Rxb5 36. c4) 33... Qxd5 {[%emt 0:01:00]} ({And not} 33... Qxa5 34. Qxf7#) 34. Nb3 {[%emt 0:00:43]} Nc4 {[%emt 0:01:41]} 35. Qf2 {[%emt 0:00:46]} Kg8 {[%emt 0:01:35]} 36. Qh4 {[%emt 0:00:45]} Re8 {[%emt 0:00:40]} 37. Rh1 {[%emt 0:00:34]} Qe5 {[%emt 0:00:53]} 38. c3 {[%emt 0:01:09]} b5 {[%emt 0:02:12]} 39. a3 {[%emt 0:01:19]} a5 {[%emt 0:00:41]} 40. Qh7+ {[%emt 0:00:00]} Kf8 {[%emt 0:00:00]} 41. Bh6 {[%emt 0:00:46] [#]} Bxh6 $1 {[%emt 0:02:01]} 42. Qxh6+ {[%emt 0:00:30]} Qg7 {[%emt 0:00:21]} 43. Qg5 {[%emt 0:04:42]} Qe5 {[%emt 0:05:44]} 44. Qh6+ {[%emt 0:00:15]} Ke7 {[%emt 0:00:25]} 45. Nd4 {[%emt 0:01:40]} Kd7 {[%emt 0:02:35]} 46. Rf1 {[%emt 0:00:57]} Re7 {[%emt 0:02:50]} (46... Qd5 $17 {[%cal Ob5b4] Strongly threatening ...b4!} 47. Qf4 Re7) 47. Qf8 $2 {[%emt 0:07:17][%mdl 8192]} (47. Qh1 $11 d5 (47... Nd2+ $2 48. Ka1 $17) 48. Ka2) 47... Qh2 $19 {[%emt 0:01:40]} 48. Nc2 {[%emt 0:02:11]} Nd2+ {[%emt 0:00:05]} 49. Ka2 {[%emt 0:00:13]} Nxf1 {[%emt 0:00:07]} 0-1

[Event "Romanian Championship 2024"]
[Site "Eforie Nord"]
[Date "2024.02.26"]
[Round "3.2"]
[White "Gavrilescu, David"]
[Black "Ognean, Mihnea-Ionut"]
[Result "1-0"]
[ECO "C65"]
[WhiteElo "2523"]
[BlackElo "2382"]
[Annotator "TA"]
[PlyCount "83"]
[EventDate "2024.02.24"]
[EventType "swiss"]
[EventCountry "ROU"]
[SourceTitle "playchess.com"]
[Source "ChessBase"]
[SourceQuality "1"]
[TimeControl "40/5400+30:900+30"]

{[%evp 9,83,12,3,4,19,-3,16,16,17,0,3,0,14,3,20,0,16,24,25,17,22,-2,22,15,26,12,17,17,24,20,19,9,15,0,0,0,0,0,0,0,0,0,0,0,8,11,8,0,6,6,76,59,79,72,126,90,121,97,141,138,164,149,216,216,259,259,418,429,514,494,541,497,762,750,699,602]} 1. e4 {[%emt 0:00:12]} e5 {[%emt 0:01:04]} 2. Nf3 {[%emt 0:00:21]} Nc6 {[%emt 0:00:05]} 3. Bb5 {[%emt 0:00:35]} Nf6 {[%emt 0:00:22]} 4. d4 {[%emt 0:00:28]} Nxd4 {[%emt 0:13:47]} 5. Nxd4 {[%emt 0:00:26]} exd4 {[%emt 0:00:04]} 6. Qxd4 {[%emt 0:00:55]} c6 {[%emt 0:04:25]} 7. Bd3 {[%emt 0:01:07]} d6 {[%emt 0:07:00]} 8. O-O {[%emt 0:00:58] The position is equal.} Be7 {[%emt 0:00:16]} 9. Rd1 {[%emt 0:04:23]} Bg4 {[%emt 0:11:33]} 10. Re1 {[%emt 0:07:25]} O-O {[%emt 0:01:21]} 11. Nc3 {[%emt 0:01:04]} Qb6 {[%emt 0:24:04]} 12. Ne2 {[%emt 0:15:53]} Qxd4 {[%emt 0:05:30]} 13. Nxd4 {[%emt 0:01:28]} Rfe8 {[%emt 0:00:03]} 14. h3 {[%emt 0:04:29]} Bd7 {[%emt 0:00:29]} 15. Bf4 {[%emt 0:06:01]} Rad8 {[%emt 0:02:54]} 16. c3 {[%emt 0:05:07]} g6 {[%emt 0:01:04]} 17. a4 {[%emt 0:07:27]} a6 {[%emt 0:01:35]} 18. a5 {[%emt 0:01:58]} c5 {[%emt 0:01:56]} 19. Nf3 {[%emt 0:07:40][%cal Bd4f3,Bf3d2,Bd2f1,Bf1e3][%mdl 32]} Bc6 {[%emt 0:00:15]} 20. Rad1 {[%emt 0:01:20]} Bf8 {[%emt 0:06:52]} 21. Nd2 {[%emt 0:15:14]} Kg7 {[%emt 0:02:31]} 22. Bc2 {[%emt 0:02:43]} d5 {[%emt 0:02:12]} 23. e5 {[%emt 0:01:56]} Nd7 {[%emt 0:00:10]} 24. Nf1 {[%emt 0:02:52]} Be7 {[%emt 0:00:45]} 25. e6 {[%emt 0:03:41]} fxe6 {[%emt 0:01:13]} 26. Rxe6 {[%emt 0:00:02]} Bf6 {[%emt 0:00:56]} 27. Rxe8 {[%emt 0:00:39]} Rxe8 {[%emt 0:00:05]} 28. Ne3 {[%emt 0:00:45]} d4 {[%emt 0:07:17]} 29. Ng4 Re2 {[%emt 0:01:20]} (29... Bb5 $11 {remains equal.}) 30. Bh6+ Kf7 {[%emt 0:04:22]} 31. Bb3+ {[%emt 0:01:58]} Ke7 (31... Ke8 $142) 32. Nxf6 {[%emt 0:00:43]} Kxf6 {[%emt 0:00:00]} 33. cxd4 Rxb2 {[%emt 0:00:00]} 34. Bg8 {[#] Black must now prevent Re1. This pair of bishops is nice.} Be4 {[%emt 0:00:32]} 35. dxc5 {[%emt 0:03:36]} (35. Bxh7 Kf7 36. dxc5 Rb1 37. Rxb1 Bxb1 $15) 35... Nxc5 {[%emt 0:00:24]} (35... Rb1 $16 {keeps fighting.} 36. Rxb1 Bxb1) 36. Be3 $18 {[%emt 0:00:26] Hoping for Bd4+.} (36. Bxh7 $6 Bc2 37. Rd8 Rb5 38. Rf8+ Ke7) 36... Rc2 {[%emt 0:00:52] [#]} 37. Bd4+ $1 {[%emt 0:00:43]} (37. Bxh7 Kg7 38. Bxc5 Rxc5 39. Rd7+ Kh6 $14) 37... Kg5 $2 {[%emt 0:00:12]} (37... Ke7 38. Re1 (38. Bxh7 Kf7 $16) 38... Kf8) 38. Re1 {[%emt 0:01:49]} ({Weaker is} 38. Bxh7 Ne6 39. Bb6 Kf6 $18) 38... Bf5 {[%emt 0:00:43] White is clearly winning.} 39. g4 {[%emt 0:01:14]} Nd3 {[%emt 0:00:04]} 40. Re3 {[%emt 0:00:00]} Rc1+ {[%emt 0:00:00]} (40... Bxg4 $142 41. Rxd3 Bf5 42. Rg3+ Kf4) 41. Kh2 {[%emt 0:02:04]} Bxg4 {[%emt 0:05:09]} 42. Rxd3 {[%emt 0:00:45] Weighted Error Value: White=0.09 (flawless) /Black=0.24 (precise) .  Mistake:       	---       	Black=5      Inaccurate:     	---       	Black=2      OK:         	White=11    	Black=10     Best:        	White=3     	---        Strong:       	White=1     	---} 1-0